Cogmind - Beta 12 @@@ ROGUE MODE // 2023.04.02 @ 20:58:56 Player: dhtilly Result: Destroyed by P-80 Master with Gamma Rifle Performance ------------- Evolutions (7) 3500 Regions Visited (25) 5000 Robots Destroyed (435) 2175 Value Destroyed (20511) 20511 Prototype IDs (64) 1280 Alien Tech Used (1) 200 Bonus (12910) 12910 TOTAL SCORE: 45576 Bonus ------- Triggered High Security 500 High Alert Combat Kills 6080 Follower Combat Kills 3201 Entered DSFs 500 Network Hubs Disabled 400 Aligned with FarCom 300 Met Data Miner 300 Met Warlord at Base 500 MAIN.C Attacked Warlord 500 Warlord Defense Kills 1238 Built Enhanced Grunts 300 A7 Reached Mainframe 300 Met R17 at Cetus 500 Scanned by Researcher 500 Friendly Fire -2209 Cogmind --------- Core Integrity 0/1300 Matter 168/300 Energy 75/100 System Corruption 28% Temperature Cool (32) Movement Flying (30) Location -3/Armory Parts ------- > --- POWER (2) -------- (None) > --- PROPULSION (7) --- Diametric Drive > --- UTILITY (8) ------ (None) > --- WEAPON (4) ------- (None) > --- INVENTORY (5) ---- Diametric Drive Diametric Drive Advanced Signal Interpreter Advanced Force Field Compact HERF Cannon Peak State ------------ > --- POWER ------------ Vortex Chain Reactor > --- PROPULSION ------- Armored Medium Treads Armored Medium Treads Armored Medium Treads Improved Heavy Treads Centrium Heavy Treads > --- UTILITY ---------- Experimental Coolant Injector Huge Storage Unit Advanced Gravity Neutralizer Long-range Terrain Scanner Advanced Terrain Scan Processor Experimental Targeting Computer Advanced Hardlight Generator Advanced Force Field > --- WEAPON ----------- HERF Cannon Compact HERF Cannon Linear Accelerator Linear Accelerator > --- INVENTORY -------- Antimatter Reactor Antimatter Reactor Centrium Wheel Centrium Wheel Experimental Energy Well Matter Compressor Advanced Signal Interpreter Advanced Signal Interpreter Layered Heavy Armor Plating Focal Shield Point Defense Array Improved Hacking Suite Authchip [Propulsion] Vortex Driver Vortex Driver Linear Accelerator Vortex Catalyst Activator Advanced Datajack RU-N14's Throwing Claymores v3 RU-N14's Throwing Claymores v3 RU-N14's Throwing Claymores v3 RU-N14's Throwing Claymores v3 RU-N14's Throwing Claymores v3 [Rating: 169] Favorites ----------- Power Quantum Reactor Engine Improved Deuterium Engine Power Core Neutrino Core Reactor Quantum Reactor Propulsion Light Treads Treads Light Treads Leg Myomer Leg Wheel Wheel Hover Unit Makeshift Hover Unit Flight Unit Diametric Drive Utility Improved Targeting Computer Device Advanced Heat Sink Storage Huge Storage Unit Processor Improved Targeting Computer Hackware System Shield Protection Hardened Medium Armor Plating Weapon Cooled Particle Cannon Energy Gun Thermic Laser Energy Cannon Cooled Particle Cannon Ballistic Gun Hypervelocity Coil Gun Ballistic Cannon Hardcell Cannon Launcher Improved Grenade Launcher Special Weapon RU-N14's Throwing Claymores v3 Impact Weapon Heavy Hammer Slashing Weapon Phasing Sabre Piercing Weapon Lance Special Melee Weapon Advanced Datajack Build | -11 -10 -10 -9 -9 -9 -8 -8 -7 -7 -7 -6 -6 -6 -6 -6 -6 -5 -5 -4 -4 -4 -4 -3 -3 -3 ------- Run | Jun Mat Min Mat Min Exi Min Mat Fac Low Dat Pro Fac Ext Cet Arc Hub Fac DSF Fac Upp Upp War Pro Res Arm Slots Evolved 14 | . . . 2 . . . 2 2 . . . 2 . . . . 2 . 2 . . . . 2 . Power 1 | . . . . . . . . . . . . 1 . . . . . . . . . . . . . Propulsion 5 | . . . 1 . . . 1 . . . . 1 . . . . 1 . . . . . . 1 . Utility 6 | . . . 1 . . . 1 1 . . . . . . . . 1 . 1 . . . . 1 . Weapon 2 | . . . . . . . . 1 . . . . . . . . . . 1 . . . . . . Parts Attached 616 | 6 21 1 27 6 1 11 47 44 3 3 6 35 31 21 9 41 4 31 59 15 47 24 16 18 89 Power 51 | 1 2 . 2 1 . . 1 5 . . . 7 4 3 1 6 . . 5 1 5 2 . . 5 Engine 21 | 1 2 . 2 1 . . 1 5 . . . 5 3 . . . . . . . . 1 . . . Core 9 | . . . . . . . . . . . . 2 1 2 1 2 . . 1 . . . . . . Reactor 21 | . . . . . . . . . . . . . . 1 . 4 . . 4 1 5 1 . . 5 Propulsion 129 | 2 4 1 7 3 . 5 11 8 . . 2 2 9 6 1 7 1 2 14 . 9 7 3 3 22 Treads 62 | . . . 2 3 . . 8 3 . . 2 . 6 6 1 7 1 1 . . 5 4 1 . 12 Leg 25 | . . . . . . 2 . . . . . . . . . . . . 12 . 4 3 . . 4 Wheel 36 | 2 4 1 5 . . 3 3 5 . . . 2 3 . . . . 1 2 . . . . 3 2 Hover 5 | . . . . . . . . . . . . . . . . . . . . . . . 2 . 3 Flight 1 | . . . . . . . . . . . . . . . . . . . . . . . . . 1 Utility 206 | 1 5 . 9 . 1 4 20 12 1 . . 13 11 7 3 20 3 7 26 5 18 8 4 10 18 Device 121 | . 2 . 4 . . 2 6 5 . . . 6 7 3 3 13 2 5 17 3 14 4 4 9 12 Storage 11 | 1 2 . 1 . 1 . 1 . . . . . . 1 . . . . . . 1 1 . 1 1 Processor 21 | . 1 . 1 . . . 2 . 1 . . . . . . 3 1 . 6 . 2 2 . . 2 Hackware 3 | . . . . . . . 1 1 . . . . . . . 1 . . . . . . . . . Protection 50 | . . . 3 . . 2 10 6 . . . 7 4 3 . 3 . 2 3 2 1 1 . . 3 Artifact . | . . . . . . . . . . . . . . . . . . . . . . . . . . Weapon 230 | 2 10 . 9 2 . 2 15 19 2 3 4 13 7 5 4 8 . 22 14 9 15 7 9 5 44 Energy Gun 13 | 1 . . . . . . 1 1 . . . . . . . 1 . 7 1 . . . . . 1 Energy Cannon 53 | . 2 . 1 1 . 1 3 10 1 2 1 6 . 2 . 4 . . . . . 1 2 3 13 Ballistic Gun 39 | 1 . . . . . . 1 . . . . . . 1 . 2 . 13 9 5 6 1 . . . Ballistic Cannon 63 | . 7 . 6 1 . 1 6 3 . 1 2 5 2 1 2 1 . 1 1 . 5 3 2 . 13 Launcher 20 | . . . . . . . . 3 1 . 1 2 1 1 . . . 1 1 . 3 . . . 6 Special Weapon 13 | . . . . . . . . . . . . . . . . . . . . . . 1 4 1 7 Impact Weapon 3 | . 1 . 2 . . . . . . . . . . . . . . . . . . . . . . Slashing Weapon 18 | . . . . . . . 4 2 . . . . 4 . 2 . . . 2 2 . . 1 1 . Piercing Weapon 1 | . . . . . . . . . . . . . . . . . . . . 1 . . . . . Special Melee Weapon 7 | . . . . . . . . . . . . . . . . . . . . 1 1 1 . . 4 Unidentified Prototypes 31 | . . . 2 . . . 2 3 . . . 3 . 3 . 1 . . 2 . . 8 . 2 5 Corrupted Parts 7 | . . . . . . . . . . . . . . . . 7 . . . . . . . . . System Corruption 37 | . . . . . . . . . . . . . . . . 37 . . . . . . . . . Parts Lost 101 | . 3 . 3 5 . 4 3 . . . . 2 2 2 1 6 . 9 1 2 17 1 6 . 34 Power 17 | . 2 . . 1 . . 1 . . . . . . 1 . 1 . . 1 . 4 . . . 6 Propulsion 38 | . 1 . 2 2 . 3 1 . . . . . 1 . 1 1 . 4 . . 4 1 4 . 13 Utility 21 | . . . 1 . . 1 1 . . . . 1 . 1 . 1 . 2 . . 3 . 1 . 9 Weapon 25 | . . . . 2 . . . . . . . 1 1 . . 3 . 3 . 2 6 . 1 . 6 Highest Loss Streak 14 | . 2 . 1 5 . 3 3 . . . . 1 1 2 1 2 . 3 1 2 12 1 3 . 14 To Critical Strikes 7 | . . . . . . 1 . . . . . . . . . . . . . . 1 1 1 . 3 Average Slot Usage (%) 92 | . 90 100 98 98 100 98 99 96 92 71 92 86 90 92 92 92 86 79 89 99 91 88 83 88 80 Engine 4 | . 12 14 11 11 11 11 9 7 7 7 7 1 4 6 . . . . . . . . . . . Core 1 | . . . . . . . . . . . . 5 7 4 5 5 . . 2 . . . . . . Reactor 3 | . . . . . . . . . . . . . . 1 6 6 11 11 7 10 7 5 5 4 6 Treads 14 | . . . 6 23 33 18 16 15 15 15 15 12 12 24 26 25 23 16 4 . 11 21 19 14 19 Leg 2 | . . . . . . . . . . . . . . . . . . . 11 31 16 4 . . . Wheel 8 | . 21 28 26 9 . 12 19 13 7 7 7 13 12 1 . . . . 6 . . . . 12 3 Device 11 | . 11 14 9 11 11 . 7 13 11 7 7 10 15 13 12 16 17 14 13 15 14 9 8 21 15 Storage 7 | . 14 14 11 11 11 11 9 7 7 7 7 6 6 6 6 6 5 5 5 5 5 5 5 4 4 Processor 10 | . . . 11 11 11 11 10 7 10 15 15 13 7 6 6 5 9 9 10 10 12 21 21 10 8 Protection 3 | . . . 1 . . 10 9 7 7 7 7 2 2 5 6 2 . 2 5 5 2 . 1 . 1 Energy Cannon 7 | . 4 . . 5 11 11 9 14 14 1 14 12 10 11 13 12 5 . . . . . . 12 6 Ballistic Gun 2 | . 1 . . . . . . . . . . . . 1 . . 5 12 18 20 11 . . . . Ballistic Cannon 8 | . 19 28 21 15 11 10 8 6 7 . 7 6 4 5 5 6 5 . . . 7 14 12 4 8 Naked Turns . | . . . . . . . . . . . . . . . . . . . . . . . . . . Heaviest Build 201 | 11 51 34 64 57 57 64 72 96 82 77 80 84 86 142 146 150 148 147 166 141 149 170 171 179 201 Greatest Support 253 | 20 26 26 42 60 60 60 30 40 28 28 28 56 68 166 168 168 218 218 147 147 182 193 193 135 253 Greatest Overweight (x) 9 | . 3 1 3 2 . 5 3 6 2 2 2 2 3 3 . 1 . 5 9 . 1 . 1 9 6 Average Overweight (x) 1 | . 1 1 1 1 . 2 2 2 2 2 2 1 1 . . . . 1 2 . . . . 1 . Largest Inventory Capacity 35 | 8 20 15 20 20 20 20 20 20 20 20 20 20 20 25 25 25 25 25 25 25 35 25 25 25 25 Average Capacity 21 | 6 15 15 17 20 20 20 20 20 20 20 20 20 20 24 25 25 25 25 25 25 25 25 25 25 25 Most Carried 25 | 4 15 15 19 19 17 20 20 20 20 20 20 20 20 25 25 25 24 25 25 25 25 25 25 25 25 Average Carried 21 | 2 12 15 15 16 15 18 19 19 20 20 19 19 19 23 24 24 23 24 24 24 21 24 24 24 24 Final Capacity 25 | 8 15 15 20 20 20 20 20 20 20 20 20 20 20 25 25 25 25 25 25 25 25 25 25 25 5 Final Carried 25 | 4 15 15 19 15 16 20 20 20 20 20 20 20 20 25 25 25 23 24 25 25 25 25 25 25 5 Class Distribution -------------------- 28% | Mutant 22% | Scavenger-Skirmisher 15% | Scavenger-Mutant 11% | Scavenger-Gunner 6% | Skirmisher 5% | Tank 4% | Scavenger-Tank Dominant Class ---------------- Mutant | -10/Materials Mutant | -10/Mines Mutant | -9/Materials Mutant | -9/Mines Mutant | -9/Exiles Mutant | -8/Mines Scavenger-Mutant | -8/Materials Tank | -7/Factory Scavenger-Mutant | -7/Lower Caves Scavenger-Mutant | -7/Data Miner Scavenger-Gunner | -6/Proximity Caves Mutant | -6/Factory Mutant | -6/Extension Scavenger-Skirmisher | -6/Cetus Scavenger-Skirmisher | -6/Archives Scavenger-Skirmisher | -6/Hub_04(d) Scavenger-Skirmisher | -5/Factory Scavenger-Skirmisher | -5/DSF Scavenger-Skirmisher | -4/Factory Scavenger-Skirmisher | -4/Upper Caves Scavenger-Gunner | -4/Upper Caves Scavenger-Mutant | -4/Warlord Scavenger-Gunner | -3/Proximity Caves Skirmisher | -3/Research Skirmisher | -3/Armory Resources | -11 -10 -10 -9 -9 -9 -8 -8 -7 -7 -7 -6 -6 -6 -6 -6 -6 -5 -5 -4 -4 -4 -4 -3 -3 -3 ----------- Run | Jun Mat Min Mat Min Exi Min Mat Fac Low Dat Pro Fac Ext Cet Arc Hub Fac DSF Fac Upp Upp War Pro Res Arm Matter Collected 16659 | 221 599 153 891 123 . 240 808 635 293 . 214 486 857 289 130 1067 . 1007 1848 784 1520 421 715 367 2991 Remotely 4384 | . . . . . . . . . . . . . 669 . . 378 . 126 1052 784 561 . . . 814 Salvage Created 16893 | . 567 94 1139 63 . 401 1448 1261 418 . 153 788 580 37 189 2014 . 666 1324 515 1105 58 474 515 3084 Parts 785 | . 33 10 74 4 . 22 79 63 13 . 7 32 20 5 14 77 . 29 78 23 46 1 16 19 120 Haulers Intercepted 28 | . 2 . 6 . . . 6 4 . . . 1 2 . . 6 . . 1 . . . . . . Recyclers Shooed 6 | . . . 1 . . . 2 2 . . . . . . . . . . 1 . . . . . . Parts Field Recycled . | . . . . . . . . . . . . . . . . . . . . . . . . . . Retrieved Matter . | . . . . . . . . . . . . . . . . . . . . . . . . . . Parts Self-Destructed 92 | . . . . . . . . . 12 . 18 . . . . . . . . 14 33 . 15 . . Prevented . | . . . . . . . . . . . . . . . . . . . . . . . . . . Kills | -11 -10 -10 -9 -9 -9 -8 -8 -7 -7 -7 -6 -6 -6 -6 -6 -6 -5 -5 -4 -4 -4 -4 -3 -3 -3 ------- Run | Jun Mat Min Mat Min Exi Min Mat Fac Low Dat Pro Fac Ext Cet Arc Hub Fac DSF Fac Upp Upp War Pro Res Arm Combat Hostiles Destroyed 336 | . 12 6 18 5 . 8 25 18 7 . 5 17 6 1 2 21 . 9 18 4 23 8 22 5 96 Melee 1 | . . . . . . . . . . . . . . . . . . . . . . . . . 1 Guns 40 | . . . . . . . . . . . . . . . . 2 . 6 15 4 13 . . . . Cannons 187 | . 11 6 18 5 . 7 24 13 4 . 3 13 6 1 2 19 . . . . . 3 12 2 38 AOE 101 | . . . . . . . . 5 3 . 2 3 . . . . . 3 3 . 10 5 10 . 57 Classes Destroyed 27 | . 7 . 6 1 . 2 . 3 . . 1 . . . . . . 1 . 2 . 1 1 . 2 Worker 12 | . . . 2 . . 1 1 2 . . . . . . . 6 . . . . . . . . . Builder 2 | . . . . . . 1 . . . . . . . . . . . . 1 . . . . . . Tunneler 3 | . 1 1 . . . 1 . . . . . . . . . . . . . . . . . . . Hauler 28 | . 2 . 6 . . . 6 4 . . . 1 2 . . 6 . . 1 . . . . . . Recycler 14 | . 1 1 3 . . 2 2 3 . . . . 1 . . . . . 1 . . . . . . Carrier 2 | . . . . . . . . . . . . . . . . . . 1 . . . . . . 1 Minesweeper 1 | . . . . . . . . . . . . . . . . . . . . 1 . . . . . Mechanic 11 | . 1 . 1 . . . . 1 . . . . . . . . . . . . . . . . 8 Operator 13 | . 1 . 3 . . . 3 . . . . . 1 . 2 1 . . . . . . . . 2 Drone 2 | . . . . . . . . . . . . . . . . . . . . . . . 2 . . Watcher 11 | . . . 4 . . . 2 . . . . . . . . 2 . . 1 . . . . 1 1 Swarmer 56 | . 3 6 2 2 . 4 4 3 3 . 2 3 . . . . . . 4 . 9 1 4 . 6 Saboteur 5 | . . . . . . . . . . . . . . . . . . . . . . . . . 5 Grunt 111 | . 9 . 8 1 . 2 15 1 3 . 1 9 1 . . 6 . 2 5 . 4 3 6 . 35 Brawler 13 | . . . 2 . . . 1 . . . 1 1 . . . . . . . . 3 . . . 5 Duelist 10 | . . . 1 1 . 1 . . . . . 1 . . . . . . . . 2 . . . 4 Protector 5 | . . . 1 . . . . . . . . . . . . 1 . . . . . . . . 3 Sentry 35 | . . . 5 . . . 5 3 . . . 1 1 . 2 3 . . 1 1 1 . 1 3 8 Demolisher 2 | . . . . 1 . . . . . . . . . . . . . . . . . . . . 1 Specialist 8 | . . . . . . . . 2 . . . . . . . . . 5 . . . . . . 1 Hunter 32 | . . . . . . 1 . 2 . . . . . . . 2 . . 2 2 4 2 4 2 11 Programmer 42 | . . . . . . . . 6 1 . . 2 2 1 . 3 . 1 6 . . . 4 . 16 Heavy 4 | . . . . . . . . 1 . . . . . . . 2 . 1 . . . . . . . Behemoth 6 | . . . . . . . . . . . 1 . 2 . . 1 . . . . . . 1 . 1 Enhanced Grunt 3 | . . . . . . . . . . . . . . . . 3 . . . . . . . . . Lightning 3 | . . . . . . . . . . . . . . . . 3 . . . . . . . . . Investigator 2 | . . . . . . . . . . . . . . . . . . . . . . . . . 2 Striker 4 | . . . . . . . . . . . . . . . . . . . . . . 2 . . 2 Guerrilla 1 | . . . . . . . . . . . . . . . . 1 . . . . . . . . . Mutant 1 | . . . . . . . . . . . . . . . . . . . . 1 . . . . . Best Kill Streak 18 | . 5 3 6 2 . 2 4 5 3 . 3 4 2 1 2 9 . 6 7 2 5 7 4 2 18 Combat Bots Only 14 | . 4 3 3 2 . 2 4 3 3 . 3 4 2 1 2 7 . 3 6 2 5 7 4 2 14 Max Kills in Single Turn 7 | . 1 1 1 1 . 1 1 2 2 . 2 3 2 1 1 4 . 2 3 1 5 2 3 1 7 Gunslinging . | . . . . . . . . . . . . . . . . . . . . . . . . . . Exploded 6 | . . . . . . . . 2 2 . 2 3 . . . . . 2 3 . 5 2 3 . 6 Melee 1 | . . . . . . . . . . . . . . . . . . . . . . . . . 1 Uniques/NPCs Destroyed . | . . . . . . . . . . . . . . . . . . . . . . . . . . Combat | -11 -10 -10 -9 -9 -9 -8 -8 -7 -7 -7 -6 -6 -6 -6 -6 -6 -5 -5 -4 -4 -4 -4 -3 -3 -3 -------- Run | Jun Mat Min Mat Min Exi Min Mat Fac Low Dat Pro Fac Ext Cet Arc Hub Fac DSF Fac Upp Upp War Pro Res Arm Damage Taken 28288 | . 469 170 563 849 . 664 1140 635 347 . 352 887 820 834 140 2445 . 1765 1573 577 2533 1008 1151 165 9201 Core 3390 | . 37 50 71 192 . 85 72 39 39 . 19 94 90 61 50 257 . 484 140 34 145 106 25 11 1289 Absorbed by Shields 4788 | . . . . . . . 24 88 20 . . 62 21 86 . 246 . 25 148 . 138 419 353 172 2986 Reduced by Siege Mode 6 | . . . . . . . . . . . . . . . . . . . . . . . 6 . . Redirected to Shielding 72 | . . . . . . 5 15 . . . . . . . . . . . . . . . . . 52 Regen/Repaired (Parts) 2239 | . . . 110 . . . 167 53 . . . 146 50 76 . . . 48 695 . . 166 . . 728 Core Remaining (%) 62 | 100 . 65 . . . 13 86 . . . 86 . . . . 35 . 51 . . . . 60 . . Volleys Fired 942 | . 45 14 81 13 . 39 106 57 22 . 17 47 33 10 6 98 . 37 57 13 48 17 27 17 138 Largest 4 | . 2 2 2 2 . 2 2 3 3 . 3 3 3 3 3 3 . 3 4 4 4 3 3 4 4 Hottest 358 | . 136 78 78 78 . 136 112 180 149 . 149 149 160 105 100 110 . 210 140 135 195 195 265 329 358 Shots Fired 2283 | . 76 23 159 22 . 65 194 138 38 . 50 106 81 30 18 282 . 91 205 53 171 39 67 44 331 Gun 517 | . . . . . . . . . . . . . . 1 . 37 . 75 201 53 150 . . . . Cannon 1693 | . 76 23 159 22 . 65 194 133 34 . 49 105 80 29 18 245 . 12 2 . 17 33 59 44 294 Launcher 33 | . . . . . . . . 5 4 . 1 1 1 . . . . 4 2 . 4 . . . 11 Special 40 | . . . . . . . . . . . . . . . . . . . . . . 6 8 . 26 Kinetic 1474 | . 54 23 159 22 . 35 88 37 4 . 16 46 22 11 6 133 . 67 203 53 167 33 55 15 225 Thermal 634 | . 22 . . . . 30 106 96 30 . 33 59 58 19 12 149 . 20 . . . . . . . Explosive 67 | . . . . . . . . 5 4 . 1 1 1 . . . . 4 2 . 4 6 8 . 31 Electromagnetic 77 | . . . . . . . . . . . . . . . . . . . . . . . . 29 48 Entropic 30 | . . . . . . . . . . . . . . . . . . . . . . . 4 . 26 Robot Hit Streak 23 | . 7 6 9 3 . 9 23 15 16 . 18 20 23 5 6 15 . 14 14 8 12 6 10 9 15 Robot Miss Streak 7 | . 3 3 5 3 . 4 6 2 2 . 2 3 4 3 1 4 . 4 7 6 5 3 2 1 6 Penetration Max 1 | . . . . . . . . . . . . . . . . 1 . 1 1 . 1 . . . 1 Secondary Targets 7 | . . . . . . . . . . . . . . . . . . 2 1 1 3 . . . . Max Gunslinging Chain 1 | . . . . . . . . . . . . . . . . . . 1 1 1 1 . . . . Shots Hit Robots 1470 | . 43 11 93 11 . 42 135 69 26 . 35 62 59 18 14 186 . 67 117 30 104 34 44 22 248 Core Hits 884 | . 19 8 42 6 . 17 56 41 13 . 14 31 21 7 7 84 . 37 50 10 70 19 35 10 287 Critical Kills 32 | . 1 . . . . 1 1 . . . . 1 . . . 2 . 4 15 3 4 . . . . Critical Parts Destroyed 39 | . . . . . . . . . . . . . . . . 4 . 2 25 3 5 . . . . Critical Strikes 124 | . 1 . 2 . . 1 2 1 . . 3 1 2 1 . 9 . 10 40 6 10 5 6 1 23 Meltdown 5 | . 1 . . . . 1 1 . . . . 1 . . . 1 . . . . . . . . . Destroy 70 | . . . . . . . . . . . . . . . . 5 . 10 40 6 9 . . . . Blast 29 | . . . 2 . . . 1 1 . . 3 . 2 1 . 3 . . . . 1 3 3 . 9 Corrupt 2 | . . . . . . . . . . . . . . . . . . . . . . . . 1 1 Sever 10 | . . . . . . . . . . . . . . . . . . . . . . 2 2 . 6 Sunder 8 | . . . . . . . . . . . . . . . . . . . . . . . 1 . 7 Melee Attacks 73 | . 3 . 2 . . . 9 2 . . . . 2 . 2 . . . 9 3 9 11 1 . 20 Impact 5 | . 3 . 2 . . . . . . . . . . . . . . . . . . . . . . Slashing 28 | . . . . . . . 9 2 . . . . 2 . 2 . . . 9 3 . . 1 . . Piercing . | . . . . . . . . . . . . . . . . . . . . . . . . . . Sneak Attacks 45 | . . . . . . . . . . . . . 2 . 2 . . . 1 . 9 11 . . 20 Combat Hostiles . | . . . . . . . . . . . . . . . . . . . . . . . . . . Follow-up Attacks . | . . . . . . . . . . . . . . . . . . . . . . . . . . Damage Inflicted 70508 | . 795 246 2293 257 . 909 2884 2303 902 . 1088 2183 2173 626 545 6828 . 1386 1820 600 3306 2123 4404 805 32032 Guns 4814 | . . . . . . . . . . . . . . 22 . 701 . 620 1461 454 1556 . . . . Cannons 33657 | . 795 246 2293 257 . 909 2884 1815 675 . 922 1928 1890 604 355 5452 . 344 . . 539 584 1609 805 8751 Explosions 29497 | . . . . . . . . 482 227 . 166 255 126 . . 635 . 422 192 . 1211 1351 2378 . 22052 Melee 660 | . . . . . . . . . . . . . 157 . 190 . . . 167 146 . . . . . Ramming 118 | . . . . . . . . 6 . . . . . . . 40 . . . . . . . . 72 Kinetic 23192 | . 491 246 2293 257 . 437 1241 453 86 . 276 756 649 325 111 2808 . 664 1461 454 2095 584 1277 149 6079 Thermal 11619 | . 304 . . . . 472 1643 1362 589 . 646 1172 1241 301 244 3345 . 300 . . . . . . . Explosive 21455 | . . . . . . . . 482 227 . 166 255 126 . . . . 422 192 . 1211 1351 2378 . 14645 Electromagnetic 2239 | . . . . . . . . . . . . . . . . 635 . . . . . . . 656 948 Impact . | . . . . . . . . . . . . . . . . . . . . . . . . . . Slashing 2422 | . . . . . . . . . . . . . 157 . 190 . . . 167 146 . 188 417 . 1157 Piercing . | . . . . . . . . . . . . . . . . . . . . . . . . . . Entropic 9463 | . . . . . . . . . . . . . . . . . . . . . . . 332 . 9131 Highest Corruption 55 | . . . . . . . 2 1 2 2 2 1 2 2 2 55 . 3 5 5 5 5 6 . 28 Average Corruption 3 | . . . . . . . 1 1 1 2 2 1 1 2 1 27 . 2 4 5 5 5 5 . 5 Corruption Purged 2 | . . . . . . . . . . . . . . . 2 . . . . . . . . . . Corruption Blocked 6 | . . . . . . . . 6 . . . . . . . . . . . . . . . . . Effects 271 | . . . . . . . 26 10 16 . 13 2 7 7 2 13 . 6 9 35 42 2 39 . 42 Message Errors 68 | . . . . . . . 6 5 6 . 3 . 3 1 . 5 . 1 1 11 8 . 8 . 10 Matter Fused 66 | . . . . . . . 5 3 5 . 3 . 1 2 1 1 . 4 1 6 14 1 10 . 9 Heat Flow Errors 36 | . . . . . . . . 1 2 . 2 . 2 2 . 2 . . 2 4 8 . 4 . 7 Energy Discharges 27 | . . . . . . . 4 1 2 . 2 1 . 1 1 . . . 2 4 2 . 4 . 3 Parts Rejected 3 | . . . . . . . 1 . . . . . . . . . . . 1 . . . . . 1 Parts Fused 4 | . . . . . . . 1 . . . . . . . . . . . . 1 . . 1 . 1 Data Loss (minor) 25 | . . . . . . . 5 . 1 . 2 1 . 1 . 1 . 1 . 3 4 . 3 . 3 Data Loss (major) 11 | . . . . . . . . . . . . . . . . . . . 2 1 3 1 2 . 2 Misfires 16 | . . . . . . . 1 . . . 1 . . . . 1 . . . 4 3 . 5 . 1 Alerts 4 | . . . . . . . 1 . . . . . . . . . . . . 1 . . 1 . 1 Misdirections 1 | . . . . . . . . . . . . . . . . . . . . . . . . . 1 Weapon Failures 10 | . . . . . . . 2 . . . . . 1 . . 3 . . . . . . 1 . 3 Overload Shots 2 | . . . . . . . . . . . . . 2 . . . . . . . . . . . . Overflow Damage 1500 | . 1 . 5 . . 17 16 32 97 . 13 46 42 . 20 75 . 32 20 53 13 37 144 . 837 Projectiles 727 | . 1 . 5 . . 17 16 32 87 . 1 46 42 . 20 67 . 32 . . . 3 62 . 296 Explosions 700 | . . . . . . . . . 10 . 12 . . . . 8 . . . . 13 34 82 . 541 Melee 73 | . . . . . . . . . . . . . . . . . . . 20 53 . . . . . Knockbacks 139 | . 2 2 10 2 . 10 15 5 2 . . 11 . . . 18 . . . . . 7 11 . 44 Impact 2 | . . . . . . . . . . . . . . . . 1 . . . . . . . . 1 Kinetic 124 | . 2 2 10 2 . 8 13 4 2 . . 9 . . . 15 . . . . . 7 11 . 39 Secondary 13 | . . . . . . 2 2 1 . . . 2 . . . 2 . . . . . . . . 4 Self-Inflicted Damage 928 | . . . . . . . . 42 29 . . . 9 . . 202 . 88 . . 74 . . . 484 Shots 18 | . . . . . . . . 1 1 . . . 1 . . 2 . 4 . . 3 . . . 6 Rammed 10 | . . . . . . . . 1 . . . . . . . 1 . . . . . . . . 8 Targets Rammed 11 | . . . . . . . . 1 . . . . . . . 2 . . . . . . . . 8 Kicked . | . . . . . . . . . . . . . . . . . . . . . . . . . . Crushed 1 | . . . . . . . . . . . . . . . . 1 . . . . . . . . . Highest Temperature 1765 | . 290 90 127 102 . 263 337 139 162 . 243 113 133 197 63 203 . 1765 368 346 401 479 267 225 584 Average Temperature 108 | . 126 33 26 33 . 87 59 50 32 . 31 45 32 81 28 40 . 376 138 84 137 260 101 82 120 Received Heat Transfer 3735 | . 264 . 228 63 . 126 598 38 67 . 147 320 171 76 9 255 . 67 121 18 156 16 88 8 899 Effects 64 | . . . . . . 1 1 . . . . . . . . . . 41 5 . 2 2 . . 12 Shutdowns 12 | . . . . . . . . . . . . . . . . . . 8 1 . 1 . . . 2 Energy Bleed 10 | . . . . . . 1 1 . . . . . . . . . . 3 1 . 1 . . . 3 Interference 14 | . . . . . . . . . . . . . . . . . . 6 3 . . . . . 5 Matter Decay 5 | . . . . . . . . . . . . . . . . . . 5 . . . . . . . Short Circuit 6 | . . . . . . . . . . . . . . . . . . 4 . . . 1 . . 1 Damage (minor) 7 | . . . . . . . . . . . . . . . . . . 5 . . . 1 . . 1 Damage (major) 7 | . . . . . . . . . . . . . . . . . . 7 . . . . . . . Damage (core) 3 | . . . . . . . . . . . . . . . . . . 3 . . . . . . . Siege Activations 1 | . . . . . . . . . . . . . . . . . . . . . . . 1 . . Total Turns 14 | . . . . . . . . . . . . . . . . . . . . . . . 14 . . Longest Duration 14 | . . . . . . . . . . . . . . . . . . . . . . . 14 . . Robots Corrupted 5 | . . . . . . . . . . . . . . . . 2 . . . . . . . 3 . Combat Hostiles 3 | . . . . . . . . . . . . . . . . . . . . . . . . 3 . Parts Fried 16 | . . . . . . . . . . . . . . . . 6 . . . . . . . 7 3 Impact Corruptions . | . . . . . . . . . . . . . . . . . . . . . . . . . . Robots Melted 5 | . 1 . . . . 1 1 . . . . 1 . . . 1 . . . . . . . . . Combat Hostiles 4 | . 1 . . . . 1 1 . . . . 1 . . . . . . . . . . . . . Parts Melted 18 | . 1 . 2 . . 3 4 1 3 . . 1 1 . . 2 . . . . . . . . . Heat Transferred 17354 | . 555 . . . . 851 2960 1961 814 . 888 1591 1580 407 333 4614 . 800 . . . . . . . Parts Sabotaged 9 | . . . . . . . . . . . . . . . . . . . . . . . . . 9 Parts Stolen . | . . . . . . . . . . . . . . . . . . . . . . . . . . Parts Stripped . | . . . . . . . . . . . . . . . . . . . . . . . . . . Power Chain Reactions . | . . . . . . . . . . . . . . . . . . . . . . . . . . Missiles Intercepted 1 | . . . . . . . . . . . . . . . . . . . . . . . . . 1 Alert | -11 -10 -10 -9 -9 -9 -8 -8 -7 -7 -7 -6 -6 -6 -6 -6 -6 -5 -5 -4 -4 -4 -4 -3 -3 -3 ------- Run | Jun Mat Min Mat Min Exi Min Mat Fac Low Dat Pro Fac Ext Cet Arc Hub Fac DSF Fac Upp Upp War Pro Res Arm Peak Influence 3211 | . 241 199 722 342 . 107 572 456 . . . 200 340 410 377 1168 576 659 438 . . . . 421 3211 Initial 571 | . . 23 . 187 . . . 245 . . . . 76 109 164 61 571 403 340 . . . . 150 220 Average 397 | . 121 64 486 229 . 38 374 291 . . . 54 189 273 336 568 571 539 191 . . . . 207 1256 Maximum Alert Level 5 | . 1 . 3 1 . . 2 2 . . . 1 1 2 1 4 2 2 2 . . . . 2 5 Low Security (%) 35 | 100 89 100 8 24 . 100 10 17 . . . 99 60 10 10 18 . . 55 . . . . 55 . Level 1 29 | . 10 . 10 75 . . 36 74 . . . . 39 75 89 21 . . 39 . . . . 34 11 Level 2 22 | . . . 75 . . . 53 7 . . . . . 14 . 24 100 99 4 . . . . 9 18 Level 3 6 | . . . 5 . . . . . . . . . . . . 29 . . . . . . . . 24 Level 4 2 | . . . . . . . . . . . . . . . . 5 . . . . . . . . 19 Level 5 . | . . . . . . . . . . . . . . . . . . . . . . . . . . High Security 2 | . . . . . . . . . . . . . . . . . . . . . . . . . 25 Max Security . | . . . . . . . . . . . . . . . . . . . . . . . . . . Sterilizations 1 | . . . . . . . . . . . . . . . . . . 1 . . . . . . . Squads Dispatched 80 | . 3 . 3 . . . 3 11 . . . 8 2 . . 9 . 2 9 . 1 . . 1 28 Investigation 8 | . 1 . 1 . . . . 1 . . . 2 1 . . 1 . . 1 . . . . . . Extermination 17 | . . . . . . . . 4 . . . 3 . . . 3 . . 4 . . . . . 3 Reinforcement 25 | . 2 . 1 . . . 3 5 . . . 1 1 . . 5 . 2 3 . . . . . 2 Assault 28 | . . . 1 . . . . 1 . . . . . . . . . . 1 . 1 . . 1 23 Garrison 2 | . . . . . . . . . . . . 2 . . . . . . . . . . . . . Intercept . | . . . . . . . . . . . . . . . . . . . . . . . . . . Searches Triggered . | . . . . . . . . . . . . . . . . . . . . . . . . . . Data Miner Redirects 6 | . . . . . . . . . . . . 2 1 . . 1 . . . . . . . 1 1 Construction Impeded 3 | . . . 1 . . . . . . . . . 1 . . 1 . . . . . . . . . Haulers Reinforced 4 | . . . . . . . . 1 . . . 1 . . . 1 . . 1 . . . . . . Active Scanning Responses . | . . . . . . . . . . . . . . . . . . . . . . . . . . Cargo Convoy Interrupts 1 | . . . . . . . . 1 . . . . . . . . . . . . . . . . . Stealth | -11 -10 -10 -9 -9 -9 -8 -8 -7 -7 -7 -6 -6 -6 -6 -6 -6 -5 -5 -4 -4 -4 -4 -3 -3 -3 --------- Run | Jun Mat Min Mat Min Exi Min Mat Fac Low Dat Pro Fac Ext Cet Arc Hub Fac DSF Fac Upp Upp War Pro Res Arm Distress Signals 30 | . 1 . 1 . . . 9 2 . . . 1 3 2 . 3 . . . . . 1 . 1 6 Communications Jammed 85 | . . . . . . . . . . . . . . 6 . 70 . 9 . . . . . . . Distress Signals 70 | . . . . . . . . . . . . . . 6 . 64 . . . . . . . . . Times Spotted 595 | . 25 6 51 8 . 9 51 21 7 . 11 22 23 16 8 36 . 11 17 4 26 24 21 12 186 Peak Tracking Total 30 | . 5 3 5 3 . 4 8 3 3 . 3 4 4 7 1 4 . 3 3 2 11 18 4 3 30 Tactical Retreats 24 | . . . 1 . . 1 11 . . . . . 1 . . . . 1 . . 2 . . 1 6 Traps | -11 -10 -10 -9 -9 -9 -8 -8 -7 -7 -7 -6 -6 -6 -6 -6 -6 -5 -5 -4 -4 -4 -4 -3 -3 -3 ------- Run | Jun Mat Min Mat Min Exi Min Mat Fac Low Dat Pro Fac Ext Cet Arc Hub Fac DSF Fac Upp Upp War Pro Res Arm Traps Triggered 16 | . 1 . . . . . 3 3 . . . 3 2 . . . . 2 . 1 . . . . 1 Indirectly . | . . . . . . . . . . . . . . . . . . . . . . . . . . Trap Hack Attempts . | . . . . . . . . . . . . . . . . . . . . . . . . . . Triggered . | . . . . . . . . . . . . . . . . . . . . . . . . . . Disarmed . | . . . . . . . . . . . . . . . . . . . . . . . . . . Reprogrammed . | . . . . . . . . . . . . . . . . . . . . . . . . . . Reused . | . . . . . . . . . . . . . . . . . . . . . . . . . . Traps Extracted . | . . . . . . . . . . . . . . . . . . . . . . . . . . Installed 8 | . . 3 . . . . . . . . . . . . . . . . . 5 . . . . . Triggered 19 | . . . . . . . . 2 . . . . . . . . . . . 1 . 16 . . . Most Traps Carried 1 | . . . . . . . . . . . . . . . . . . . . 1 . . . . . Machines | -11 -10 -10 -9 -9 -9 -8 -8 -7 -7 -7 -6 -6 -6 -6 -6 -6 -5 -5 -4 -4 -4 -4 -3 -3 -3 ---------- Run | Jun Mat Min Mat Min Exi Min Mat Fac Low Dat Pro Fac Ext Cet Arc Hub Fac DSF Fac Upp Upp War Pro Res Arm Machines Disabled 61 | . . 1 3 . . . . 4 . . . . 5 2 3 21 . . 3 1 . . 1 2 15 Max in Single Turn 8 | . . 1 1 . . . . 1 . . . . 1 . 1 8 . . 3 1 . . 1 1 1 Garrison Access 4 | . . . . . . . 1 1 . . . . . . . 1 . . . . . . . 1 . Network Hub 2 | . . . . . . . . . . . . . . . . 2 . . . . . . . . . Energy Cycler 1 | . . . . . . . . . . . . . 1 . . . . . . . . . . . . Machines Repaired . | . . . . . . . . . . . . . . . . . . . . . . . . . . Machines Sabotaged . | . . . . . . . . . . . . . . . . . . . . . . . . . . Overloaded Fab Kills . | . . . . . . . . . . . . . . . . . . . . . . . . . . Hacking | -11 -10 -10 -9 -9 -9 -8 -8 -7 -7 -7 -6 -6 -6 -6 -6 -6 -5 -5 -4 -4 -4 -4 -3 -3 -3 --------- Run | Jun Mat Min Mat Min Exi Min Mat Fac Low Dat Pro Fac Ext Cet Arc Hub Fac DSF Fac Upp Upp War Pro Res Arm Machines Accessed 105 | . 9 . 14 1 2 1 13 12 . 4 1 8 6 2 . 10 1 . 6 1 1 5 1 4 3 Terminals 64 | . 8 . 10 1 . 1 8 7 . . 1 3 6 2 . 9 1 . 4 . . . . 2 1 Fabricators 3 | . . . . . . . . 1 . . . 1 . . . . . . 1 . . . . . . Repair Stations 13 | . 1 . 2 . . . 2 2 . . . 3 . . . . . . 1 . . . . . 2 Recycling Units . | . . . . . . . . . . . . . . . . . . . . . . . . . . Scanalyzers 6 | . . . 2 . . . 2 1 . . . . . . . . . . . . . . . 1 . Garrison Access 5 | . . . . . . . 1 1 . . . 1 . . . 1 . . . . . . . 1 . Total Hacks 343 | . 30 . 50 3 5 3 42 31 . 30 2 18 7 6 . 23 2 . 39 1 1 14 1 19 16 Successful 188 | . 8 . 33 1 5 1 22 19 . 30 2 7 3 1 . 12 1 . 15 1 1 14 1 5 6 Failed 154 | . 22 . 17 2 . 2 20 11 . . . 11 4 5 . 11 1 . 24 . . . . 14 10 Catastrophic 38 | . 4 . 1 . . 1 4 3 . . . 2 3 1 . 6 . . 5 . . . . 4 4 Database Lockouts 1 | . . . . . . . . 1 . . . . . . . . . . . . . . . . . Manual 96 | . 10 . 23 . 1 2 8 13 . . . 4 3 1 . 14 . . 9 . . 4 . 4 . Terminals 183 | . 28 . 32 3 . 3 18 18 . . 2 6 7 6 . 22 2 . 25 . . . . 9 2 Fabricators 7 | . . . . . . . . 3 . . . 3 . . . . . . 1 . . . . . . Repair Stations 49 | . 2 . 4 . . . 4 4 . . . 8 . . . . . . 13 . . . . . 14 Recycling Units . | . . . . . . . . . . . . . . . . . . . . . . . . . . Scanalyzers 44 | . . . 14 . . . 17 4 . . . . . . . . . . . . . . . 9 . Garrison Access 8 | . . . . . . . 3 2 . . . 1 . . . 1 . . . . . . . 1 . Terminal Hacks 99 | . 5 . 9 1 5 1 2 6 . 30 2 . 2 1 . 8 1 . 8 1 1 14 1 1 . Record 31 | . . . . . 4 . . . . 11 2 . . . . . . . . . . 13 1 . . Part Schematic 17 | . . . 2 . . . . 1 . 12 . . . . . 1 . . 1 . . . . . . Robot Schematic 4 | . . . . . . . . . . 4 . . . . . . . . . . . . . . . Robot Analysis 1 | . . . 1 . . . . . . . . . . . . . . . . . . . . . . Prototype ID Bank 4 | . 1 . . . . . . . . 3 . . . . . . . . . . . . . . . Open Door 6 | . . . . . . . . . . . . . 2 1 . . . . . 1 1 1 . . . Open DSF 1 | . . . . . . . . . . . . . . . . . 1 . . . . . . . . Branch Access Points 4 | . 1 . . . . . 1 1 . . . . . . . 1 . . . . . . . . . Machine Index 1 | . . . . . . . . . . . . . . . . . . . . . . . . 1 . Terminal Index 1 | . . . . . . . . . . . . . . . . . . . 1 . . . . . . Alert Level 7 | . . . 1 . . . 1 1 . . . . . . . 3 . . 1 . . . . . . Unreport Threat 6 | . . . 2 . . . . 1 . . . . . . . 2 . . 1 . . . . . . Dispatch Records 1 | . . . . 1 . . . . . . . . . . . . . . . . . . . . . Patrol Status 1 | . . . . . . . . . . . . . . . . . . . 1 . . . . . . Hauler Manifests 4 | . 1 . . . . . . 1 . . . . . . . 1 . . 1 . . . . . . Registered Components 3 | . 1 . 1 . . . . . . . . . . . . . . . 1 . . . . . . Zone Layout 6 | . 1 . 2 . . 1 . 1 . . . . . . . . . . 1 . . . . . . EX-Prototype ID Bank 1 | . . . . . 1 . . . . . . . . . . . . . . . . . . . . Fabricator Hacks 6 | . . . . . . . . 3 . . . 2 . . . . . . 1 . . . . . . Network Status 1 | . . . . . . . . 1 . . . . . . . . . . . . . . . . . Load Schematic 2 | . . . . . . . . 1 . . . 1 . . . . . . . . . . . . . Build 3 | . . . . . . . . 1 . . . 1 . . . . . . 1 . . . . . . Repair Station Hacks 28 | . 1 . 4 . . . 4 4 . . . 4 . . . . . . 5 . . . . . 6 Scan Component 17 | . 1 . 2 . . . 2 2 . . . 3 . . . . . . 3 . . . . . 4 Repair 11 | . . . 2 . . . 2 2 . . . 1 . . . . . . 2 . . . . . 2 Recycling Unit Hacks . | . . . . . . . . . . . . . . . . . . . . . . . . . . Scanalyzer 32 | . . . 14 . . . 12 3 . . . . . . . . . . . . . . . 3 . Insert Component 17 | . . . 7 . . . 7 1 . . . . . . . . . . . . . . . 2 . Analyze 15 | . . . 7 . . . 5 2 . . . . . . . . . . . . . . . 1 . Garrison Access Hacks 2 | . . . . . . . 1 . . . . . . . . 1 . . . . . . . . . Seal Access 2 | . . . . . . . 1 . . . . . . . . 1 . . . . . . . . . Unauthorized Hacks 21 | . 2 . 6 . . . 3 3 . . . 1 1 . . 3 . . 1 . . . . 1 . Terminals 21 | . 2 . 6 . . . 3 3 . . . 1 1 . . 3 . . 1 . . . . 1 . Assimilate 2 | . . . . . . . 1 . . . . . . . . 1 . . . . . . . . . Botnet 19 | . 2 . 6 . . . 2 3 . . . 1 1 . . 2 . . 1 . . . . 1 . Fabricators . | . . . . . . . . . . . . . . . . . . . . . . . . . . Repair Stations . | . . . . . . . . . . . . . . . . . . . . . . . . . . Recycling Units . | . . . . . . . . . . . . . . . . . . . . . . . . . . Scanalyzers . | . . . . . . . . . . . . . . . . . . . . . . . . . . Garrison Access . | . . . . . . . . . . . . . . . . . . . . . . . . . . Data Cores Recovered 4 | . . . 3 . . . 1 . . . . . . . . . . . . . . . . . . Used 2 | . . . 1 . . . 1 . . . . . . . . . . . . . . . . . . Hacking Detections 81 | . 9 . 13 1 . 1 11 11 . . . 8 3 3 . 9 . . 5 . . . . 4 3 Full Trace Events 6 | . . . . . . 1 . 1 . . . 2 . . . 1 . . 1 . . . . . . Feedback Events . | . . . . . . . . . . . . . . . . . . . . . . . . . . Feedback Blocked . | . . . . . . . . . . . . . . . . . . . . . . . . . . Robot Schematics Acquired 4 | . . . . . . . . . . 4 . . . . . . . . . . . . . . . Robots Built . | . . . . . . . . . . . . . . . . . . . . . . . . . . Authchips . | . . . . . . . . . . . . . . . . . . . . . . . . . . Time . | . . . . . . . . . . . . . . . . . . . . . . . . . . Total Robot Build Rating . | . . . . . . . . . . . . . . . . . . . . . . . . . . Part Schematics Acquired 30 | . . . 8 . . . 5 2 . 12 . . . . . 1 . . 1 . . . . 1 . Parts Built 5 | . . . . . . . . 2 . . . 1 . . . . . . 2 . . . . . . Authchips . | . . . . . . . . . . . . . . . . . . . . . . . . . . Time 235 | . . . . . . . . 42 . . . 76 . . . . . . 117 . . . . . . Total Part Build Rating 27 | . . . . . . . . 8 . . . 5 . . . . . . 14 . . . . . . Parts Repaired 11 | . . . 2 . . . 2 2 . . . 1 . . . . . . 2 . . . . . 2 Time 551 | . . . 58 . . . 76 57 . . . 70 . . . . . . 194 . . . . . 96 Parts Recycled . | . . . . . . . . . . . . . . . . . . . . . . . . . . Recycled Matter . | . . . . . . . . . . . . . . . . . . . . . . . . . . Retrieved Matter . | . . . . . . . . . . . . . . . . . . . . . . . . . . Retrieved Components . | . . . . . . . . . . . . . . . . . . . . . . . . . . Parts Scanalyzed 15 | . . . 6 . . . 6 1 . . . . . . . . . . . . . . . 2 . Part Schematics Acquired 13 | . . . 6 . . . 5 1 . . . . . . . . . . . . . . . 1 . Parts Damaged 2 | . . . 1 . . . . 1 . . . . . . . . . . . . . . . . . Bothacking | -11 -10 -10 -9 -9 -9 -8 -8 -7 -7 -7 -6 -6 -6 -6 -6 -6 -5 -5 -4 -4 -4 -4 -3 -3 -3 ------------ Run | Jun Mat Min Mat Min Exi Min Mat Fac Low Dat Pro Fac Ext Cet Arc Hub Fac DSF Fac Upp Upp War Pro Res Arm Used RIF Installer . | . . . . . . . . . . . . . . . . . . . . . . . . . . Robots Hacked 1 | . . . . . . . . . . . . . . . . . . . . . . 1 . . . Non-combat 1 | . . . . . . . . . . . . . . . . . . . . . . 1 . . . Combat . | . . . . . . . . . . . . . . . . . . . . . . . . . . Robot Hacks Applied 1 | . . . . . . . . . . . . . . . . . . . . . . 1 . . . parse_system 1 | . . . . . . . . . . . . . . . . . . . . . . 1 . . . Relay Couplers Released 7 | . . . . . . . . 2 . . . . . . . 3 . . . . . . . 2 . Machine Destruction 7 | . . . . . . . . 2 . . . . . . . 3 . . . . . . . 2 . Fabnet Peak Effective % . | . . . . . . . . . . . . . . . . . . . . . . . . . . Robots Rewired 30 | . . . . . . . . . . . . . 8 . . . . . . . 2 5 . . 15 Allies Hacked 1 | . . . . . . . . . . . . . . . . . . . . . . . . . 1 Hacks Repelled . | . . . . . . . . . . . . . . . . . . . . . . . . . . Allies | -11 -10 -10 -9 -9 -9 -8 -8 -7 -7 -7 -6 -6 -6 -6 -6 -6 -5 -5 -4 -4 -4 -4 -3 -3 -3 -------- Run | Jun Mat Min Mat Min Exi Min Mat Fac Low Dat Pro Fac Ext Cet Arc Hub Fac DSF Fac Upp Upp War Pro Res Arm Total Allies 49 | . . 5 . . . . . . . . 1 . 16 5 . . . . . . 2 5 . . 15 Largest Group 9 | . . 5 5 2 . . . . . . 1 1 8 9 9 6 . . . . 2 7 . . 5 Highest-Rated Group 645 | . . 89 89 34 . . . . . . 96 91 366 645 645 452 . . . . 77 345 . . 269 Highest-Rated Ally 159 | . . 31 31 18 . . . . . . 96 91 159 159 153 96 . . . . 47 65 . . 68 Total Orders 16 | . . . . . . . . . . . . . . 1 . 11 . . . . 2 . . . 2 STAY 8 | . . . . . . . . . . . . . . . . 6 . . . . 1 . . . 1 FOLLOW 7 | . . . . . . . . . . . . . . . . 5 . . . . 1 . . . 1 GUARD 1 | . . . . . . . . . . . . . . 1 . . . . . . . . . . . Ally Attacks 464 | . . . 97 12 . . . . . . 23 1 70 77 18 40 . . . . 7 13 . . 106 Total Damage 13118 | . . . 1234 139 . . . . . . 939 . 1659 2421 585 1584 . . . . 226 587 . . 3744 Kills 92 | . . . 17 2 . . . . . . 5 . 12 16 2 13 . . . . 2 4 . . 19 Allies Corrupted 3 | . . . . . . . . . . . . . . . . 2 . . . . . . . . 1 Allies Melted 2 | . . . . . . . . . . . . . 1 . . . . . . . . 1 . . . Intel | -11 -10 -10 -9 -9 -9 -8 -8 -7 -7 -7 -6 -6 -6 -6 -6 -6 -5 -5 -4 -4 -4 -4 -3 -3 -3 ------- Run | Jun Mat Min Mat Min Exi Min Mat Fac Low Dat Pro Fac Ext Cet Arc Hub Fac DSF Fac Upp Upp War Pro Res Arm Robot Analysis Total 1 | . . . 1 . . . . . . . . . . . . . . . . . . . . . . Derelict Logs Recovered 9 | . . 1 . 2 . . . . . . 2 . . . . . . . . 2 2 . . . . Drone Launches . | . . . . . . . . . . . . . . . . . . . . . . . . . . Drone Recoveries . | . . . . . . . . . . . . . . . . . . . . . . . . . . Exploration | -11 -10 -10 -9 -9 -9 -8 -8 -7 -7 -7 -6 -6 -6 -6 -6 -6 -5 -5 -4 -4 -4 -4 -3 -3 -3 ------------- Run | Jun Mat Min Mat Min Exi Min Mat Fac Low Dat Pro Fac Ext Cet Arc Hub Fac DSF Fac Upp Upp War Pro Res Arm Turns Passed 32027 | 45 890 697 2309 523 562 1219 2460 2699 1494 149 1344 1524 948 540 416 2589 23 487 1807 1285 1598 1378 1964 766 2311 Spaces Moved 19180 | 42 642 614 1760 356 347 739 1536 1639 1090 111 980 1090 539 284 231 1268 12 157 715 994 988 788 856 476 926 Core 3 | 3 . . . . . . . . . . . . . . . . . . . . . . . . . Treads 5553 | . . . 1 175 347 26 13 27 . . . . 2 246 231 1268 12 112 209 . 485 788 856 26 729 Legs 1671 | . . . . . . 6 . . . . . . . . . . . . 166 994 503 . . . 2 Wheels 11953 | 39 642 614 1759 181 . 707 1523 1612 1090 111 980 1090 537 38 . . . 45 340 . . . . 450 195 Hover . | . . . . . . . . . . . . . . . . . . . . . . . . . . Flight . | . . . . . . . . . . . . . . . . . . . . . . . . . . Fastest Speed 50 | 50 80 95 86 110 160 110 95 120 130 130 130 110 110 110 160 160 160 160 110 110 110 160 162 130 130 Average Speed 135 | 77 104 100 106 134 160 135 122 134 130 130 130 112 113 160 160 162 160 166 180 110 135 160 202 136 161 Slowest Speed 400 | 80 125 105 400 160 160 320 400 240 130 130 130 130 246 246 160 240 160 240 240 110 187 164 243 270 400 Overloaded Moves . | . . . . . . . . . . . . . . . . . . . . . . . . . . Propulsion Burnouts . | . . . . . . . . . . . . . . . . . . . . . . . . . . Robots Hopped . | . . . . . . . . . . . . . . . . . . . . . . . . . . Cave-ins Triggered . | . . . . . . . . . . . . . . . . . . . . . . . . . . Exploration Rate (%) 70 | 3 96 99 97 79 77 96 76 34 89 72 99 24 73 84 98 89 1 87 14 95 95 92 93 12 53 Regions Visited 25 Branch Regions 16 Pre-discovered Areas 8 | . . 1 . 1 1 . . . . 1 2 . . . . . . . . 1 1 . . . . Known Exits Taken 12 | . 1 . . . . . . 1 1 1 1 1 . . . 1 1 . 1 . 1 . 1 1 . Unknown Exits Taken 12 | 1 . 1 1 1 1 1 1 . . . . . 1 1 1 . . . . 1 . 1 . . . Scrap Searched 18 | . . 1 . 2 . 1 . . 4 . 3 . . . . . . . . 2 3 . 2 . . Spaces Dug 247 | . 3 . 1 . . . 9 9 . . . 10 . . . 174 . . 9 3 24 . . 3 2 Terrain Destroyed 1609 | . 3 . 6 2 . 4 13 107 36 . 4 44 38 2 3 383 . 58 118 14 150 60 111 9 444 Melee 20 | . 3 . 1 . . . 9 2 . . . . . . . . . . 5 . . . . . . Projectile 313 | . . . 5 2 . 4 4 13 1 . 1 22 8 2 3 56 . 1 25 14 52 13 20 9 58 AOE 1256 | . . . . . . . . 92 35 . 3 22 30 . . 327 . 55 72 . 96 47 91 . 386 Terrain Rammed . | . . . . . . . . . . . . . . . . . . . . . . . . . . Walls Destroyed . | . . . . . . . . . . . . . . . . . . . . . . . . . . Machines Disabled . | . . . . . . . . . . . . . . . . . . . . . . . . . . Actions | -11 -10 -10 -9 -9 -9 -8 -8 -7 -7 -7 -6 -6 -6 -6 -6 -6 -5 -5 -4 -4 -4 -4 -3 -3 -3 --------- Run | Jun Mat Min Mat Min Exi Min Mat Fac Low Dat Pro Fac Ext Cet Arc Hub Fac DSF Fac Upp Upp War Pro Res Arm Total 23334 | 51 787 674 2038 378 354 890 1920 2025 1130 116 1014 1304 798 348 264 1575 15 306 1087 1157 1152 882 1030 566 1473 Wait 1767 | . 30 42 135 3 5 93 163 226 16 . 3 98 104 4 6 140 . 46 180 86 27 7 124 26 203 Move 19155 | 41 641 613 1759 355 346 738 1535 1638 1089 110 979 1089 538 283 230 1267 11 156 714 993 987 787 855 475 926 Hop . | . . . . . . . . . . . . . . . . . . . . . . . . . . Pick Up 246 | 4 20 . 17 1 1 5 21 20 . . 2 5 5 12 3 10 . 13 23 20 15 10 4 10 25 Fast Attach 212 | 6 10 . 6 . . 5 14 15 . 3 2 13 5 9 2 13 . 16 20 2 8 13 4 9 37 Attach 128 | . 2 . 6 5 . 1 7 3 . . . 9 5 1 2 8 2 5 12 4 19 2 3 5 27 Detach 85 | . 7 . 1 . . 2 5 3 . . . 9 4 1 3 6 . 4 12 1 10 2 1 4 10 Swap 277 | . 9 1 15 1 1 5 26 26 3 . 4 13 21 11 5 20 2 10 27 9 20 9 9 5 25 Drop 327 | . 20 1 16 . 1 2 34 34 . 3 6 13 11 17 5 11 . 19 33 21 9 24 2 15 30 Fire 942 | . 45 14 81 13 . 39 106 57 22 . 17 47 33 10 6 98 . 37 57 13 48 17 27 17 138 Melee 73 | . 3 . 2 . . . 9 2 . . . . 2 . 2 . . . 9 3 9 11 1 . 20 Ram . | . . . . . . . . . . . . . . . . . . . . . . . . . . Kick . | . . . . . . . . . . . . . . . . . . . . . . . . . . Crush 11 | . . . . . . . . 1 . . . . . . . 2 . . . . . . . . 8 Escape Stasis 48 | . . . . . . . . . . . . 8 16 . . . . . . . . . . . 24 Rewire 55 | . . . . . . . . . . . 1 . 54 . . . . . . . . . . . . Trap 8 | . . 3 . . . . . . . . . . . . . . . . . 5 . . . . . Miscellaneous . | . . . . . . . . . . . . . . . . . . . . . . . . . . Route ------- -11/Junkyard -10/Materials (discovered 5 exits: *Mat x3 / *Min x2) -10/Mines (discovered 2 exits: *Mat x2) -9/Materials (discovered 7 exits: *Mat x3 / *Min x2 / [*Sto x2]) -9/Mines (discovered 2 exits: *Mat / *Exi) -9/Exiles -8/Mines (discovered 2 exits: *Mat x2) -8/Materials -7/Factory (discovered 3 exits: *Fac / *Low x2) -7/Lower Caves (discovered 2 exits: *Low / *Dat) -7/Data Miner -6/Proximity Caves -6/Factory (discovered 2 exits: *Low / *Ext) -6/Extension (discovered 3 exits: *Fac x2 / *Cet) -6/Cetus (discovered 3 exits: *Fac x2 / [*Arc]) -6/Archives (discovered 3 exits: *Fac / *Hub x2) -6/Hub_04(d) (discovered 4 exits: *Fac x4) -5/Factory -5/DSF -4/Factory (discovered 3 exits: *Res x2 / *Upp) -4/Upper Caves -4/Upper Caves (discovered 2 exits: *Res / *War) -4/Warlord -3/Proximity Caves -3/Research -3/Armory (discovered 1 exit: *Res) History --------- Turn | Location | Event 16 | -11/Junkyard | Discovered new exit (range 15) 46 | -11/Junkyard | Entered Materials 120 | -10/Materials | Identified exit to Mines 316 | -10/Materials | Build established: Mutant 387 | -10/Materials | Discovered new exit (range 16) 492 | -10/Materials | Discovered new exit (range 7) 778 | -10/Materials | Discovered new exit (range 15) 936 | -10/Materials | Entered Mines 1061 | -10/Mines | Found a hidden stash of uninstalled traps 1073 | -10/Mines | Discovered new exit (range 14) 1098 | -10/Mines | Discovered new exit (range 10) 1144 | -10/Mines | Assisted by bots powering up and referring to "LRC-V3" 1465 | -10/Mines | Learned location of Storage (-9) 1467 | -10/Mines | Learned Materials trap positions 1633 | -10/Mines | Entered Materials 1633 | -9/Materials | Accompanied by 5 allies 1633 | -9/Materials | Evolved 2 slots: Propulsion x1, Utility x1 1634 | -9/Materials | Loaded intel: 19 trap records 1641 | -9/Materials | Led the pair of lost Derelicts to an unsafe place 1895 | -9/Materials | Discovered new exit (range 14) 1940 | -9/Materials | Discovered new exit (range 16) 2071 | -9/Materials | Repaired Structural Scanner 2184 | -9/Materials | Discovered new exit (range 13) 2365 | -9/Materials | Discovered new exit (range 11) 2433 | -9/Materials | First assault squad dispatched 2435 | -9/Materials | Discovered new exit (range 3) 2769 | -9/Materials | Discovered new exit (range 4) 2934 | -9/Materials | Discovered new exit (range 15) 3079 | -9/Materials | Repaired Imp. Light Cannon 3942 | -9/Materials | Entered Mines 3942 | -9/Mines | Accompanied by 2 allies 4129 | -9/Mines | Assembled infested the area 4174 | -9/Mines | Core integrity fell below 50% 4212 | -9/Mines | Lost 5 parts (1p2n2w) 4261 | -9/Mines | Learned location of Zion (-6) 4261 | -9/Mines | Discovered new exit (range 11) 4403 | -9/Mines | Learned Materials stockpile data 4459 | -9/Mines | Discovered new exit (range 5) 4465 | -9/Mines | Entered Exiles 4504 | -9/Exiles | Met 8R-AWN 4533 | -9/Exiles | Met EX-HEX 4590 | -9/Exiles | Met EX-BIN 4608 | -9/Exiles | Aligned with FarCom system 4609 | -9/Exiles | Given EX-Vault access code 4646 | -9/Exiles | Opened EX-Vault 4659 | -9/Exiles | Found Cloak of Protection 4695 | -9/Exiles | Warned to stay clear of 0b10 Research branches 4742 | -9/Exiles | Met EX-DEC 4887 | -9/Exiles | Visited The Gauntlet 5008 | -9/Exiles | Discovered new exit (range 11) 5027 | -9/Exiles | Left Exiles lab with Cloak of Protection 5027 | -9/Exiles | Entered Mines 5203 | -8/Mines | Discovered new exit (range 7) 5750 | -8/Mines | Core integrity fell below 20% 5794 | -8/Mines | Lost 3 parts (2n1u) 5992 | -8/Mines | Discovered new exit (range 2) 6246 | -8/Mines | Entered Materials 6246 | -8/Materials | Evolved 2 slots: Propulsion x1, Utility x1 6529 | -8/Materials | Lost 3 parts (1p1n1u) 6735 | -8/Materials | Build established: Scavenger-Mutant 7529 | -8/Materials | Repaired Hrd. Medium Armor Plating? 8458 | -8/Materials | Discovered new exit (range 13) 8504 | -8/Materials | Repaired Assault Cannon 8706 | -8/Materials | Entered Factory 8706 | -7/Factory | Evolved 2 slots: Utility x1, Weapon x1 9045 | -7/Factory | Build established: Scavenger-Skirmisher 9226 | -7/Factory | Discovered new exit (range 5) 9483 | -7/Factory | Build established: Scavenger-Tank 9814 | -7/Factory | Identified exit to Lower Caves 9994 | -7/Factory | Repaired Assault Cannon 10044 | -7/Factory | Discovered new exit (range 12) 10075 | -7/Factory | Repaired Hardlight Generator? 10077 | -7/Factory | Cargo convoy interrupted 10545 | -7/Factory | Build established: Tank 10586 | -7/Factory | Central database locked down 11003 | -7/Factory | Fabricated Arm. Huge Wheel (x2) 11405 | -7/Factory | Entered Lower Caves 11499 | -7/Lower Caves | A Derelict revealed a hidden shortcut to meet someone special 11714 | -7/Lower Caves | Spotted B-75 Beast 11851 | -7/Lower Caves | Build established: Scavenger-Tank 11904 | -7/Lower Caves | Encountered a Warlord checkpoint 12335 | -7/Lower Caves | Discovered new exit (range 3) 12339 | -7/Lower Caves | Identified exit to Lower Caves 12359 | -7/Lower Caves | Build established: Scavenger-Mutant 12456 | -7/Lower Caves | Identified exit to Data Miner 12899 | -7/Lower Caves | Entered Data Miner 12899 | -7/Data Miner | Discovered new exit (range 6) 12907 | -7/Data Miner | Identified exit to Proximity Caves 12927 | -7/Data Miner | Met Data Miner 12957 | -7/Data Miner | Learned location of Section 7 (-2) 12957 | -7/Data Miner | Acquired the access code to Warlord's prototype stash 12982 | -7/Data Miner | Received God Mode back door access code from Data Miner 13048 | -7/Data Miner | Entered Proximity Caves 13173 | -6/Proximity Caves | Spotted B-75 Beast 13175 | -6/Proximity Caves | Escorted by Enhanced Grunt 13194 | -6/Proximity Caves | Destroyed B-75 Beast 13344 | -6/Proximity Caves | Build established: Scavenger-Gunner 13462 | -6/Proximity Caves | Discovered new exit (range 13) 13477 | -6/Proximity Caves | Identified exit to Factory 13817 | -6/Proximity Caves | Attracted the attention of an 0b10 checkpoint 14392 | -6/Proximity Caves | Entered Factory 14392 | -6/Factory | Accompanied by 1 ally 14392 | -6/Factory | Evolved 2 slots: Power x1, Propulsion x1 14508 | -6/Factory | Found Prototype Launcher 14508 | -6/Factory | Identified Rocket Array 14583 | -6/Factory | Incoming investigation squad redirected 14681 | -6/Factory | Build established: Scavenger-Skirmisher 14850 | -6/Factory | Discovered new exit (range 15) 14860 | -6/Factory | Discovered new exit (range 6) 14864 | -6/Factory | Identified exit to Extension 14960 | -6/Factory | Identified exit to Lower Caves 15182 | -6/Factory | Incoming investigation squad redirected 15230 | -6/Factory | Fabricated Lgt. Regenerative Plating? 15374 | -6/Factory | Repaired Cld. Particle Cannon? 15768 | -6/Factory | Garrison activated, responded to threat 15916 | -6/Factory | Entered Extension 15970 | -6/Extension | Rescued a captive Derelict 15970 | -6/Extension | Rescued a captive Derelict 15991 | -6/Extension | Rescued a captive Derelict 16154 | -6/Extension | Rescued a captive Derelict 16156 | -6/Extension | Rescued a captive Derelict 16178 | -6/Extension | Energy Cycler disabled 16178 | -6/Extension | Rescued a captive Derelict 16180 | -6/Extension | Rescued a captive Derelict 16181 | -6/Extension | Rescued a captive Derelict 16194 | -6/Extension | Rescued a captive Derelict 16259 | -6/Extension | Incoming investigation squad redirected 16327 | -6/Extension | Spotted B-75 Beast 16357 | -6/Extension | Spotted B-75 Beast 16358 | -6/Extension | Destroyed B-75 Beast 16391 | -6/Extension | Destroyed B-75 Beast 16413 | -6/Extension | Discovered new exit (range 15) 16466 | -6/Extension | Disrupted transfer network 16476 | -6/Extension | Rescued A7 16838 | -6/Extension | Discovered new exit (range 10) 16839 | -6/Extension | Discovered new exit (range 6) 16864 | -6/Extension | Entered Cetus 16864 | -6/Cetus | Accompanied by 8 allies (A7) 16869 | -6/Cetus | Acquired a Cetus Manufacturing Module code from A7 16880 | -6/Cetus | Spotted Cetus Guard 16880 | -6/Cetus | Spotted Cetus Guard 16884 | -6/Cetus | Spotted Cetus Guard 16890 | -6/Cetus | Spotted Cetus Guard 16894 | -6/Cetus | Allies destroyed Cetus Guard 16896 | -6/Cetus | Allies destroyed Cetus Guard 16906 | -6/Cetus | Allies destroyed Cetus Guard 16917 | -6/Cetus | Allies destroyed Cetus Guard 17039 | -6/Cetus | Discovered new exit (range 15) 17175 | -6/Cetus | Escorted A7 to Cetus Mainframe 17194 | -6/Cetus | Started Cetus Manufacturing Module 17213 | -6/Cetus | Discovered new exit (range 15) 17219 | -6/Cetus | Manufactured an Enhanced Grunt 17240 | -6/Cetus | Spotted Cetus Guard 17241 | -6/Cetus | Spotted Cetus Guard 17244 | -6/Cetus | Manufactured an Enhanced Grunt 17244 | -6/Cetus | Spotted Cetus Guard 17250 | -6/Cetus | Allies destroyed Cetus Guard 17253 | -6/Cetus | Spotted Cetus Guard 17265 | -6/Cetus | Allies destroyed Cetus Guard 17267 | -6/Cetus | Allies destroyed Cetus Guard 17267 | -6/Cetus | Discovered new exit (range 15) 17268 | -6/Cetus | Allies destroyed Cetus Guard 17269 | -6/Cetus | Manufactured an Enhanced Grunt 17277 | -6/Cetus | Met Revision 17 17294 | -6/Cetus | Manufactured an Enhanced Grunt 17319 | -6/Cetus | Manufactured an Enhanced Grunt 17326 | -6/Cetus | Cetus Manufacturing Module disabled 17404 | -6/Cetus | Entered Archives 17404 | -6/Archives | Accompanied by 9 allies (A7) 17409 | -6/Archives | Received a hacking code to weaken MAIN.C 17479 | -6/Archives | Discovered new exit (range 16) 17509 | -6/Archives | Discovered new exit (range 16) 17523 | -6/Archives | Discovered new exit (range 15) 17820 | -6/Archives | Entered Hub_04(d) 17820 | -6/Hub_04(d) | Accompanied by 6 allies 18164 | -6/Hub_04(d) | Discovered new exit (range 5) 19009 | -6/Hub_04(d) | Discovered new exit (range 5) 19147 | -6/Hub_04(d) | Discovered new exit (range 10) 19218 | -6/Hub_04(d) | Destroyed B-75 Beast 19523 | -6/Hub_04(d) | Incoming investigation squad redirected 19595 | -6/Hub_04(d) | Discovered new exit (range 7) 19761 | -6/Hub_04(d) | Identified exit to Factory 19945 | -6/Hub_04(d) | Network Hub disabled 20163 | -6/Hub_04(d) | Spotted Lightning 20169 | -6/Hub_04(d) | Network Hub disabled 20173 | -6/Hub_04(d) | Spotted Lightning 20174 | -6/Hub_04(d) | Spotted Lightning 20179 | -6/Hub_04(d) | Core integrity fell below 50% 20196 | -6/Hub_04(d) | System corruption reached 10% 20214 | -6/Hub_04(d) | Destroyed Lightning 20237 | -6/Hub_04(d) | Destroyed Lightning 20256 | -6/Hub_04(d) | Destroyed Lightning 20310 | -6/Hub_04(d) | System corruption reached 30% 20317 | -6/Hub_04(d) | Destroyed 7 combat bots 20409 | -6/Hub_04(d) | Entered Factory 20409 | -5/Factory | Evolved 2 slots: Propulsion x1, Utility x1 20431 | -5/Factory | Identified exit to DSF 20432 | -5/Factory | Entered DSF 20448 | -5/DSF | Additional patrols routed to DSF 20729 | -5/DSF | Sterilization system engaged 20749 | -5/DSF | Ambient heat levels rising (+10) 20764 | -5/DSF | Ambient heat levels rising (+10) 20779 | -5/DSF | Ambient heat levels rising (+10) 20794 | -5/DSF | Ambient heat levels rising (+10) 20799 | -5/DSF | Lost 3 parts (2n1u) 20809 | -5/DSF | Ambient heat levels rising (+10) 20824 | -5/DSF | Ambient heat levels rising (+10) 20839 | -5/DSF | Ambient heat levels rising (+10) 20846 | -5/DSF | Lost 3 parts (1n1u1w) 20854 | -5/DSF | Ambient heat levels rising (+10) 20869 | -5/DSF | Ambient heat levels rising (+10) 20884 | -5/DSF | Ambient heat levels rising (+10) 20894 | -5/DSF | Discovered new exit (range 14) 20899 | -5/DSF | Ambient heat levels rising (+10) 20914 | -5/DSF | Ambient heat levels rising (+10) 20919 | -5/DSF | Entered Factory 20919 | -4/Factory | Evolved 2 slots: Utility x1, Weapon x1 21589 | -4/Factory | Build established: Scavenger-Assassin 21707 | -4/Factory | Discovered new exit (range 19) 21776 | -4/Factory | Identified exit to Research 21888 | -4/Factory | Discovered new exit (range 16) 22013 | -4/Factory | Fabricated Adv. VSS Leg? 22109 | -4/Factory | Build established: Scavenger-Skirmisher 22111 | -4/Factory | Identified exit to Upper Caves 22240 | -4/Factory | Discovered exit to Research (range 15) 22473 | -4/Factory | Repaired Broken Antimatter Reactor? 22609 | -4/Factory | Repaired Centrium Heavy Treads 22694 | -4/Factory | First assault squad dispatched 22726 | -4/Factory | Entered Upper Caves 22762 | -4/Upper Caves | Met a Warlord Commander 22763 | -4/Upper Caves | Learned location of Warlord (-4) 22770 | -4/Upper Caves | Found Encrypted Comm Array 23288 | -4/Upper Caves | Learned Research garrison access intel 23355 | -4/Upper Caves | Attacked by a delusional Derelict stockpiling parts 23819 | -4/Upper Caves | Build established: Scavenger-Mutant 23852 | -4/Upper Caves | Discovered new exit (range 22) 23888 | -4/Upper Caves | Attracted the attention of an 0b10 checkpoint 24011 | -4/Upper Caves | Entered another Upper Caves area 24141 | -4/Upper Caves | Discovered exit to Research (range 16) 24184 | -4/Upper Caves | Build established: Scavenger-Skirmisher 24200 | -4/Upper Caves | Identified exit to Warlord 24618 | -4/Upper Caves | Attracted the attention of an 0b10 outpost 24743 | -4/Upper Caves | Lost 12 parts (2p4n3u3w) 24828 | -4/Upper Caves | Spotted B-86 Titan 24851 | -4/Upper Caves | Allies destroyed B-86 Titan 24981 | -4/Upper Caves | Learned location of Armory (-3) 25128 | -4/Upper Caves | Build established: Scavenger-Gunner 25609 | -4/Upper Caves | Entered Warlord 25609 | -4/Warlord | Accompanied by 2 allies 25650 | -4/Warlord | Discovered new exit (range 24) 25666 | -4/Warlord | System corruption cleaned by Quarantine Array 26047 | -4/Warlord | Build established: Scavenger-Mutant 26179 | -4/Warlord | Found Prototype Special Weapon 26182 | -4/Warlord | Found Prototype Special Weapon 26185 | -4/Warlord | Found Prototype Special Weapon 26187 | -4/Warlord | Found Prototype Special Weapon 26193 | -4/Warlord | Found Prototype Special Weapon 26196 | -4/Warlord | Found Prototype Special Weapon 26245 | -4/Warlord | Met Warlord 26259 | -4/Warlord | Opened Warlord's prototype stash 26267 | -4/Warlord | Found Prototype Reactor 26267 | -4/Warlord | Identified Vortex Chain Reactor 26270 | -4/Warlord | Warlord's base attacked by MAIN.C 26291 | -4/Warlord | Found Prototype Processor 26291 | -4/Warlord | Identified Exp. Armor Integrity Analyzer 26295 | -4/Warlord | Found Prototype Device 26295 | -4/Warlord | Identified Thermal Barrier 26306 | -4/Warlord | Found Exp. Targeting Computer 26555 | -4/Warlord | Build established: Commander-Mutant 26566 | -4/Warlord | Found Prototype Launcher 26568 | -4/Warlord | Found Prototype Energy Cannon 26571 | -4/Warlord | Found Prototype Energy Cannon 26620 | -4/Warlord | Warlord forces counterattacked 26871 | -4/Warlord | Identified Vortex Driver (x2) 26872 | -4/Warlord | Identified RU-N14's Throwing Claymores v3 (x6) 26877 | -4/Warlord | Spotted Striker 26884 | -4/Warlord | Spotted Striker 26888 | -4/Warlord | Destroyed Striker 26890 | -4/Warlord | Destroyed Striker 26938 | -4/Warlord | Destroyed 7 combat bots 26945 | -4/Warlord | Warlord base infiltrated, sounded retreat 26987 | -4/Warlord | Spotted Striker 26987 | -4/Warlord | Entered Proximity Caves 26987 | -3/Proximity Caves | Spotted B-86 Titan 27119 | -3/Proximity Caves | Destroyed B-86 Titan 27442 | -3/Proximity Caves | Found Alien Artifact 27544 | -3/Proximity Caves | Spotter reported a threat 27585 | -3/Proximity Caves | Lost 3 parts (2n1u) 27829 | -3/Proximity Caves | Build established: Scavenger-Gunner 27869 | -3/Proximity Caves | Attracted the attention of an 0b10 checkpoint 28197 | -3/Proximity Caves | Ambushed by research squad 28510 | -3/Proximity Caves | Build established: Mutant 28533 | -3/Proximity Caves | Discovered exit to Research (range 22) 28951 | -3/Proximity Caves | Entered Research 28951 | -3/Research | Evolved 2 slots: Propulsion x1, Utility x1 28952 | -3/Research | Identified exit to Armory 28953 | -3/Research | Loaded intel: 4 garrison access locations 29368 | -3/Research | Identified Dimensional Node Initializer 29368 | -3/Research | Initialized slip node 29503 | -3/Research | Incoming assault squad redirected 29717 | -3/Research | Entered Armory 29813 | -3/Armory | Repaired Broken Centrium Heavy Treads 30033 | -3/Armory | Destroyed 8 combat bots 30146 | -3/Armory | Discovered new exit (range 24) 30590 | -3/Armory | Build established: Skirmisher 30688 | -3/Armory | Lost 3 parts (1p1u1w) 30830 | -3/Armory | Identified exit to Research 30842 | -3/Armory | Identified Vortex Catalyst Activator 30918 | -3/Armory | Repaired Arm. Medium Treads 30968 | -3/Armory | Build established: Tank 31255 | -3/Armory | First assault squad dispatched 31276 | -3/Armory | Spotted B-86 Titan 31285 | -3/Armory | Incoming assault squad redirected 31305 | -3/Armory | Destroyed B-86 Titan 31339 | -3/Armory | Found Antimissile System 31442 | -3/Armory | High security lockdown imminent 31522 | -3/Armory | High security lockdown engaged 31612 | -3/Armory | Destroyed 13 combat bots 31678 | -3/Armory | Spotted Striker 31683 | -3/Armory | Spotted Investigator 31688 | -3/Armory | Scanned by Researcher 31694 | -3/Armory | Destroyed Investigator 31717 | -3/Armory | Destroyed 14 combat bots 31751 | -3/Armory | Found Prototype Launcher 31759 | -3/Armory | Lost 3 parts (1n2u) 31810 | -3/Armory | Spotted Striker 31838 | -3/Armory | Destroyed 10 combat bots 31841 | -3/Armory | Destroyed Striker 31842 | -3/Armory | System corruption reached 10% 31856 | -3/Armory | Spotted Striker 31857 | -3/Armory | Identified Containment Facilitator 31873 | -3/Armory | Core integrity fell below 50% 31912 | -3/Armory | Lost 14 parts (2p7n2u3w) 31917 | -3/Armory | Destroyed 9 combat bots 32008 | -3/Armory | Spotted Striker 32009 | -3/Armory | Found Fusion Bomb Launcher 32012 | -3/Armory | Found Fusion Bomb Launcher 32016 | -3/Armory | Spotted Investigator 32023 | -3/Armory | Destroyed Investigator 32024 | -3/Armory | Core integrity fell below 20% 32025 | -3/Armory | Destroyed Striker 32028 | -3/Armory | Destroyed by P-80 Master with Gamma Rifle Last Messages --------------- 32026_ L-61 Swordsman stasis bubble strength at 95. 32026_ Y-72 Warden stasis bubble strength at 50. 32026_ L-61 Swordsman stasis bubble strength at 95. 32026_ Penetrated by Slug. 32027_ Centrium Wheel severed. 32027_ L-61 Swordsman stasis bubble strength at 74. 32027_ Y-72 Warden stasis bubble strength at 20. 32027_ L-61 Swordsman stasis bubble strength at 74. 32027_ Identified Diametric Drive. 32028_ The unstable cave ceiling collapses. 32028_ L-61 Swordsman stasis bubble strength at 53. 32028_ Y-72 Warden stasis bubble bursts. 32028_ L-61 Swordsman stasis bubble strength at 53. 32028_ M-36 Artificer repairs G-73 Enforcer. 32028_ Dropped Huge Storage Unit. 32028_ Slug penetrates H-77 Assassin. 32028_ Penetrated by Slug. 32028_ M-36 Artificer destroyed. 32028_ P-80 Master stasis bubble strength at 179. 32028_ Critical hit (Burn: +25). Map ----- +----------------------------------------------------+ | ???????????????????????????????????????????????"?" | | ??????????????????????????????????????????+? ? ? ? | | ???????????????????????????????????????? ???? ?? | | ???????????????????????????????????????? ?#???? ?? | | ??????????????????????????????? ???????? ???? ? | | ????????????????????????????????????? + ?? ? ? | | ???????????????#?#####????????#??#? ? # # | | ???????????????+ ??? ????? ## ?#??#######+ | | ???????????????# ??????? ???? ? # #######? | | ???????????????# ##??? #?#? ####### ####### | | ???????????????# ##??# #?# ?##### ? ##### | | ???????????????+ #?#?# #?# ##### | | ?????????????p?# #?###+##? | | ?????????????? # ## ## H | | ??##????????##?# ## ?# ##### | | ?? ????#??#??## ## ## ##### ? ### | | ?# ????# ###### ## ############## | | ?# ?? ?# ## ### # | | ?# ?? # g mg # ### + | | ?# ? + =% %h% ###++#### # | | ?# ? # *% ppli Y # # | | ?# ?? + =%%[g p Y< # """ # | | ?# """" ## ##### %pgbh%! # """ # | | ?# "==" ##+####### % !hY #### """ # | | ?# "==" # ## b!ll Y # # #^ | | ?# ==" # ## [=@!! # # ##########^ | | ?# "" # """ ## |]=]| ############## | | ## # !" ## ]!! = # | | ## " ! = # % == % # | | "" [= ;% g # #"## | | # # = #* # " *%### | | # # # ##+####### " #### | | / ## ## ## # #### | | [ # " # = #### | | ## # " # =## # # # ###### | | # # ## ## ! ! | | ! ## # % ## # """ | | ## ## % ## # """ | | # ## # "= ##!! "" | | # ## # " #" ] F"" | | =#"""" ## ## ## "! # # """ | | * # # # # | | """ # # # #" #####+ | | % # # = [ = %[ ##### | | !% [ [ [### # "" ##### | | """" % % ## #= ####""=##### | | # ## !# ## ## " % = | | ###+## ##!| # ## ## """""" # * | | "% ##% ## ####### "]"" ] # | | ####### ### # " " ""]" # | +----------------------------------------------------+ Best States ------------- Heat Dissipation 89 Coolant Potential 120 Energy Generation 55 Energy Capacity 995 Matter Stores 300 Matter Capacity 300 Sight Range 20 Terrain Scan Range 24 Terrain Scan Density 310 Jamming Range 12 Cloak Strength 5 Power Amplification 20 Additional Mass Support 16 Armor Coverage 600 Resistance: KI 30 Resistance: TH 50 Propulsion Shielding 33 Point Defense Rating 160 Weapon Cycling 20 Evasion (%) 55 Targeting Accuracy 12 Target Analysis 9 Armor Integrity Analysis 50 Recoil Reduction 7 Offensive Hacking 12 Defensive Hacking 10 Authchip Count 2 Item Schematics ----------------- Hcp. Storage Unit | -9/Materials | Scanalyzed Hcp. Matter Pod | -9/Materials | Scanalyzed Imp. Targeting Computer | -9/Materials | Scanalyzed Structural Scanner | -9/Materials | Scanalyzed Huge Storage Unit | -9/Materials | Hacked Arm. Wheel | -9/Materials | Hacked Hrd. Medium Armor Plating | -9/Materials | Scanalyzed Katana | -9/Materials | Scanalyzed Imp. Signal Interpreter | -8/Materials | Scanalyzed Hpw. Tractor Beam | -8/Materials | Scanalyzed Imp. Terrain Scan Processor | -8/Materials | Scanalyzed Remote Datajack | -8/Materials | Scanalyzed Machine Analyzer | -8/Materials | Scanalyzed Cld. Particle Cannon | -7/Factory | Scanalyzed Arm. Huge Wheel | -7/Factory | Hacked Combat Drone Bay | -7/Data Miner | Free Lgt. Regenerative Plating | -7/Data Miner | Free Cld. Aerolev Unit | -7/Data Miner | Free Gravity Neutralizer | -7/Data Miner | Free Force Rifle | -7/Data Miner | Free Hvy. Treads | -7/Data Miner | Free Recoil Nullifier | -7/Data Miner | Free Hyp. Coil Gun | -7/Data Miner | Free Imp. Corruption Screen | -7/Data Miner | Free Imp. Plasma Cutter | -7/Data Miner | Free Adv. Medium Treads | -7/Data Miner | Free Adv. Cryofiber Web | -7/Data Miner | Free Lrn. Missile Launcher | -6/Hub_04(d) | Hacked Com. HERF Cannon | -4/Factory | Hacked Centrium Wheel | -3/Research | Scanalyzed Robot Schematics ------------------ G-50 Soldier | -7/Data Miner | Free Y-54 Guardian | -7/Data Miner | Free S-27 Virus | -7/Data Miner | Free L-41 Fighter | -7/Data Miner | Free Fabricated ------------ Arm. Huge Wheel | x2 | -7/Factory Lgt. Regenerative Plating | x1 | -6/Factory Adv. VSS Leg | x2 | -4/Factory | Preloaded Alien Tech Used ----------------- Dimensional Node Initializer Achievements -------------- Can't Touch This Cannon Specialist Charge!!! Generalissimo Giant Slayer Main Advantage No Explosion For You Reappropriation Revising The Future Z1$+NX3F=JRE3_ZNQR Challenges ------------ None Game ------ Seed NuclearShrapnelClaws Manual? 0 Play Time 07:34:18 Cumulative 167.5 hours Start 2023.04.01 @ 02:25:14 End 2023.04.02 @ 20:58:56 Sessions 5 Manual Loads 0 Difficulty Rogue Special Mode None Game No. 84 Rogue 84 Adventurer 0 Explorer 0 Win Type - Total 2 Types 2/0/0/0/0/0/0/0/0 Lore% 52 Gallery% 64 Achievement% 54 Wizard Run 0 Options --------- ASCII 0 Keyboard 1 Movement Vi Keybinds 0 Fullscreen 1 Font 12/Smallcaps Map View 83x54 Tactical HUD 1 Map Filters NONE Filters NONE Steam 1 RUN: de650a12-479f-4f1a-89b7-df268c25ce88